[Event "*** SCC Grand Prix: Titled Tuesday Blitz"]
[Site "Chess.com"]
[Date "2020.06.02"]
[Round "8"]
[White "MateSchmate"]
[Black "gixfantastix"]
[Result "0-1"]
[WhiteElo "2374"]
[BlackElo "2113"]
[TimeControl "180+1"]
[EndTime "11:36:03 PDT"]
[Termination "gixfantastix won by checkmate"]

1. e4 {[%clk 0:03:00.9]} 1... Nf6 {[%clk 0:03:00.9]} 2. e5 {[%clk 0:02:59.8]}
2... Nd5 {[%clk 0:03:01.3]} 3. c4 {[%clk 0:03:00.4]} 3... Nb6 {[%clk 0:03:01.3]}
4. a4 {[%clk 0:03:01]} 4... d6 {[%clk 0:02:58]} 5. a5 {[%clk 0:02:55.2]} 5...
N6d7 {[%clk 0:02:57.9]} 6. exd6 {[%clk 0:02:56.1]} 6... exd6 {[%clk 0:02:58.8]}
7. d4 {[%clk 0:02:40.6]} 7... c5 {[%clk 0:02:51.5]} 8. Nc3 {[%clk 0:02:41.5]}
8... Be7 {[%clk 0:02:44.2]} 9. Nf3 {[%clk 0:02:23.6]} 9... O-O {[%clk
0:02:43.3]} 10. Bd3 {[%clk 0:02:14.8]} 10... Nc6 {[%clk 0:02:39]} 11. O-O {[%clk
0:02:11.2]} 11... Nxa5 {[%clk 0:02:36.5]} 12. Nd5 {[%clk 0:02:03]} 12... Nc6
{[%clk 0:01:57.6]} 13. Re1 {[%clk 0:02:01]} 13... Re8 {[%clk 0:01:52.2]} 14.
Nxe7+ {[%clk 0:01:56.7]} 14... Rxe7 {[%clk 0:01:53.1]} 15. Bg5 {[%clk 0:01:44]}
15... Rxe1+ {[%clk 0:01:52.4]} 16. Qxe1 {[%clk 0:01:44.3]} 16... Qf8 {[%clk
0:01:35.6]} 17. Qe4 {[%clk 0:01:34.1]} 17... g6 {[%clk 0:01:30]} 18. Qh4 {[%clk
0:01:33.2]} 18... f6 {[%clk 0:01:10.4]} 19. Bh6 {[%clk 0:01:31.3]} 19... Qf7
{[%clk 0:01:06.8]} 20. Re1 {[%clk 0:01:31.3]} 20... Nf8 {[%clk 0:00:56.7]} 21.
dxc5 {[%clk 0:01:23.9]} 21... dxc5 {[%clk 0:00:54.9]} 22. Be4 {[%clk 0:01:24.1]}
22... Be6 {[%clk 0:00:53.7]} 23. Bxc6 {[%clk 0:01:19.9]} 23... bxc6 {[%clk
0:00:54.6]} 24. Qe4 {[%clk 0:01:19.6]} 24... Bxc4 {[%clk 0:00:49.9]} 25. Qxc6
{[%clk 0:01:14.3]} 25... Bd5 {[%clk 0:00:49.1]} 26. Qxc5 {[%clk 0:01:08.1]}
26... Bxf3 {[%clk 0:00:49.1]} 27. Re7 {[%clk 0:01:07.1]} 27... Qd5 {[%clk
0:00:36.6]} 28. Rg7+ {[%clk 0:01:06.6]} 28... Kh8 {[%clk 0:00:36]} 29. Qc1
{[%clk 0:00:59.5]} 29... Qd1+ {[%clk 0:00:34.6]} 30. Qxd1 {[%clk 0:00:58.1]}
30... Bxd1 {[%clk 0:00:35.5]} 31. Rf7 {[%clk 0:00:57.8]} 31... Ne6 {[%clk
0:00:26.5]} 32. Rxf6 {[%clk 0:00:57.9]} 32... Re8 {[%clk 0:00:25.9]} 33. f4
{[%clk 0:00:56.6]} 33... Nd4 {[%clk 0:00:22.4]} 34. Kf2 {[%clk 0:00:55.4]} 34...
Nf5 {[%clk 0:00:21.5]} 35. Bg5 {[%clk 0:00:53.4]} 35... Re2+ {[%clk 0:00:21.3]}
36. Kf1 {[%clk 0:00:53.2]} 36... Rxb2 {[%clk 0:00:20.5]} 37. Rc6 {[%clk
0:00:49.1]} 37... Ne3+ {[%clk 0:00:19.6]} 38. Ke1 {[%clk 0:00:49.7]} 38... Re2#
{[%clk 0:00:18.3]} 0-1

[Event "*** SCC Grand Prix: Titled Tuesday Blitz"]
[Site "Chess.com"]
[Date "2020.06.02"]
[Round "8"]
[White "HrvojeZagreb"]
[Black "pastouche06"]
[Result "0-1"]
[WhiteElo "2097"]
[BlackElo "2469"]
[TimeControl "180+1"]
[EndTime "11:36:04 PDT"]
[Termination "pastouche06 won by resignation"]

1. d4 {[%clk 0:03:00.9]} 1... Nf6 {[%clk 0:02:57.4]} 2. Bf4 {[%clk 0:03:00.3]}
2... d5 {[%clk 0:02:56.6]} 3. e3 {[%clk 0:03:00]} 3... e6 {[%clk 0:02:54.5]} 4.
Nd2 {[%clk 0:02:56.7]} 4... Bd6 {[%clk 0:02:52.2]} 5. Bg3 {[%clk 0:02:52.9]}
5... O-O {[%clk 0:02:50.9]} 6. Bd3 {[%clk 0:02:50.1]} 6... c5 {[%clk 0:02:50.9]}
7. c3 {[%clk 0:02:50.2]} 7... Qc7 {[%clk 0:02:51]} 8. Ngf3 {[%clk 0:02:45.7]}
8... Nbd7 {[%clk 0:02:50]} 9. e4 {[%clk 0:02:24.1]} 9... cxd4 {[%clk 0:02:43.7]}
10. cxd4 {[%clk 0:02:19.6]} 10... dxe4 {[%clk 0:02:37.6]} 11. Nxe4 {[%clk
0:02:20.5]} 11... Nxe4 {[%clk 0:02:36.3]} 12. Bxe4 {[%clk 0:02:18.1]} 12... Nf6
{[%clk 0:02:26.6]} 13. Bc2 {[%clk 0:02:10.4]} 13... Qa5+ {[%clk 0:01:49.6]} 14.
Kf1 {[%clk 0:02:05]} 14... Rd8 {[%clk 0:01:46.1]} 15. a3 {[%clk 0:01:48.8]}
15... b6 {[%clk 0:01:38.3]} 16. b4 {[%clk 0:01:47.1]} 16... Ba6+ {[%clk
0:01:31.2]} 17. Kg1 {[%clk 0:01:47]} 17... Qh5 {[%clk 0:01:21.9]} 18. Ne5 {[%clk
0:01:39.8]} 18... Rac8 {[%clk 0:01:13.2]} 19. h3 {[%clk 0:01:20]} 19... Qxd1+
{[%clk 0:01:09.4]} 20. Bxd1 {[%clk 0:01:20.9]} 20... Ne4 {[%clk 0:01:03.6]} 21.
Bh4 {[%clk 0:01:15.2]} 21... f6 {[%clk 0:00:58.9]} 22. Nf3 {[%clk 0:01:08.4]}
22... g5 {[%clk 0:00:57.9]} 23. Bg3 {[%clk 0:01:08]} 23... Nxg3 {[%clk
0:00:51.1]} 24. fxg3 {[%clk 0:01:08.9]} 24... Bxg3 {[%clk 0:00:51.9]} 25. Bb3
{[%clk 0:01:07.1]} 25... Bc4 {[%clk 0:00:45.4]} 26. Bxc4 {[%clk 0:00:49.8]}
26... Rxc4 {[%clk 0:00:46.3]} 27. Kf1 {[%clk 0:00:45.6]} 27... Rc2 {[%clk
0:00:46.2]} 28. h4 {[%clk 0:00:38.8]} 28... g4 {[%clk 0:00:42.3]} 29. Ne1 {[%clk
0:00:36.9]} 29... Rf2+ {[%clk 0:00:41.2]} 30. Kg1 {[%clk 0:00:36.4]} 30... Rxd4
{[%clk 0:00:40.4]} 31. Rc1 {[%clk 0:00:31.4]} 31... Re2 {[%clk 0:00:33.9]} 0-1

[Event "*** SCC Grand Prix: Titled Tuesday Blitz"]
[Site "Chess.com"]
[Date "2020.06.02"]
[Round "8"]
[White "MIJUAREZ"]
[Black "GothamChess"]
[Result "1-0"]
[WhiteElo "2393"]
[BlackElo "2610"]
[TimeControl "180+1"]
[EndTime "11:36:07 PDT"]
[Termination "MIJUAREZ won on time"]

1. e4 {[%clk 0:03:00.9]} 1... c6 {[%clk 0:02:57.7]} 2. d4 {[%clk 0:02:59.2]}
2... d5 {[%clk 0:02:48]} 3. Nd2 {[%clk 0:02:59.4]} 3... dxe4 {[%clk 0:02:46.8]}
4. Nxe4 {[%clk 0:02:58.1]} 4... Nf6 {[%clk 0:02:47.7]} 5. Ng3 {[%clk 0:02:54.9]}
5... h5 {[%clk 0:02:47.5]} 6. h4 {[%clk 0:02:43.7]} 6... Bg4 {[%clk 0:02:32.7]}
7. Qd3 {[%clk 0:02:33.8]} 7... Qb6 {[%clk 0:02:20.9]} 8. N1e2 {[%clk 0:02:04]}
8... Bxe2 {[%clk 0:02:14.5]} 9. Bxe2 {[%clk 0:01:58.4]} 9... e6 {[%clk
0:02:09.2]} 10. O-O {[%clk 0:01:48.5]} 10... Nbd7 {[%clk 0:02:05.4]} 11. Bg5
{[%clk 0:01:48.4]} 11... Bd6 {[%clk 0:01:56.8]} 12. a4 {[%clk 0:01:45.6]} 12...
a5 {[%clk 0:01:54.1]} 13. c3 {[%clk 0:01:36.2]} 13... Qc7 {[%clk 0:01:28.4]} 14.
Rae1 {[%clk 0:01:19.6]} 14... Bf4 {[%clk 0:01:16]} 15. Qf3 {[%clk 0:01:15.3]}
15... Bxg5 {[%clk 0:00:56.4]} 16. hxg5 {[%clk 0:01:14.6]} 16... Ng4 {[%clk
0:00:56.1]} 17. g6 {[%clk 0:01:12.5]} 17... fxg6 {[%clk 0:00:47.5]} 18. Bc4
{[%clk 0:01:00.3]} 18... O-O-O {[%clk 0:00:47.5]} 19. Bxe6 {[%clk 0:00:58.1]}
19... Kb8 {[%clk 0:00:32]} 20. Bxg4 {[%clk 0:00:52.6]} 20... hxg4 {[%clk
0:00:23.3]} 21. Qxg4 {[%clk 0:00:53]} 21... Nf6 {[%clk 0:00:23.8]} 22. Qg5
{[%clk 0:00:43.5]} 22... Ka8 {[%clk 0:00:16.9]} 23. Re5 {[%clk 0:00:38.7]} 23...
b6 {[%clk 0:00:12.8]} 24. Rfe1 {[%clk 0:00:36.8]} 24... Rh7 {[%clk 0:00:09.9]}
25. Qxg6 {[%clk 0:00:32.7]} 25... Rdh8 {[%clk 0:00:08.9]} 26. Re7 {[%clk
0:00:30.5]} 26... Qd6 {[%clk 0:00:04.4]} 27. Qf7 {[%clk 0:00:26]} 27... Rh1+
{[%clk 0:00:01.9]} 28. Nxh1 {[%clk 0:00:25.3]} 28... Qh2+ {[%clk 0:00:02]} 29.
Kf1 {[%clk 0:00:25.8]} 29... Qxh1+ {[%clk 0:00:02.6]} 30. Ke2 {[%clk 0:00:25.7]}
1-0

[Event "*** SCC Grand Prix: Titled Tuesday Blitz"]
[Site "Chess.com"]
[Date "2020.06.02"]
[Round "8"]
[White "GM_Levan_Pantsulaia"]
[Black "seorobert1971"]
[Result "1-0"]
[WhiteElo "2837"]
[BlackElo "2646"]
[TimeControl "180+1"]
[EndTime "11:36:08 PDT"]
[Termination "GM_Levan_Pantsulaia won by resignation"]

1. Nf3 {[%clk 0:03:00.9]} 1... Nf6 {[%clk 0:03:00]} 2. g3 {[%clk 0:03:01.3]}
2... g6 {[%clk 0:03:00.9]} 3. b3 {[%clk 0:03:00.7]} 3... Bg7 {[%clk 0:03:01.8]}
4. Bb2 {[%clk 0:03:01.6]} 4... O-O {[%clk 0:03:02.7]} 5. Bg2 {[%clk 0:03:01.9]}
5... b6 {[%clk 0:03:02.2]} 6. c4 {[%clk 0:02:58.7]} 6... Bb7 {[%clk 0:03:02.2]}
7. d4 {[%clk 0:02:59]} 7... e6 {[%clk 0:03:00.9]} 8. O-O {[%clk 0:02:57.3]} 8...
d6 {[%clk 0:03:01.1]} 9. Nc3 {[%clk 0:02:57]} 9... Ne4 {[%clk 0:03:01.1]} 10.
Qc2 {[%clk 0:02:51.7]} 10... Nxc3 {[%clk 0:03:00.1]} 11. Bxc3 {[%clk 0:02:52.6]}
11... Nd7 {[%clk 0:03:00.3]} 12. e4 {[%clk 0:02:50]} 12... Qe7 {[%clk
0:02:54.5]} 13. Rfe1 {[%clk 0:02:46]} 13... a5 {[%clk 0:02:54]} 14. Rad1 {[%clk
0:02:45]} 14... Rad8 {[%clk 0:02:50.6]} 15. h4 {[%clk 0:02:36.6]} 15... Rfe8
{[%clk 0:02:48.1]} 16. a3 {[%clk 0:02:29.1]} 16... c5 {[%clk 0:02:42.9]} 17. d5
{[%clk 0:02:28.8]} 17... Bxc3 {[%clk 0:02:40.6]} 18. Qxc3 {[%clk 0:02:29.2]}
18... exd5 {[%clk 0:02:37.8]} 19. cxd5 {[%clk 0:02:14.8]} 19... Ba6 {[%clk
0:02:36]} 20. Nd2 {[%clk 0:02:13.5]} 20... Ne5 {[%clk 0:02:29.4]} 21. Bf1 {[%clk
0:02:12.6]} 21... Bxf1 {[%clk 0:02:28.3]} 22. Kxf1 {[%clk 0:01:56.5]} 22... Qd7
{[%clk 0:02:22.3]} 23. Kg2 {[%clk 0:01:55.8]} 23... a4 {[%clk 0:02:17]} 24. bxa4
{[%clk 0:01:19]} 24... Qxa4 {[%clk 0:02:12.9]} 25. h5 {[%clk 0:01:19.4]} 25...
b5 {[%clk 0:01:57.4]} 26. hxg6 {[%clk 0:01:18.7]} 26... fxg6 {[%clk 0:01:57.4]}
27. Rh1 {[%clk 0:01:14.7]} 27... Ra8 {[%clk 0:01:54.2]} 28. f4 {[%clk
0:01:08.6]} 28... Nf7 {[%clk 0:01:35.1]} 29. Ra1 {[%clk 0:01:05.5]} 29... Rab8
{[%clk 0:01:16.7]} 30. Rac1 {[%clk 0:00:46.6]} 30... Re7 {[%clk 0:01:10.7]} 31.
Qf6 {[%clk 0:00:45.9]} 31... Rxe4 {[%clk 0:00:56.1]} 32. Rxh7 {[%clk 0:00:36.4]}
32... Re2+ {[%clk 0:00:35.6]} 33. Kf3 {[%clk 0:00:36.3]} 1-0

[Event "*** SCC Grand Prix: Titled Tuesday Blitz"]
[Site "Chess.com"]
[Date "2020.06.02"]
[Round "8"]
[White "goofypenguin96"]
[Black "CrushingKings"]
[Result "1-0"]
[WhiteElo "2297"]
[BlackElo "2496"]
[TimeControl "180+1"]
[EndTime "11:36:08 PDT"]
[Termination "goofypenguin96 won by resignation"]

1. e4 {[%clk 0:03:00.9]} 1... g6 {[%clk 0:02:59]} 2. d4 {[%clk 0:03:00.4]} 2...
Bg7 {[%clk 0:02:59.6]} 3. c4 {[%clk 0:02:59.5]} 3... d6 {[%clk 0:02:58]} 4. Nc3
{[%clk 0:02:57.8]} 4... Nf6 {[%clk 0:02:57.9]} 5. f3 {[%clk 0:02:57.3]} 5... c6
{[%clk 0:02:57.7]} 6. Be3 {[%clk 0:02:56.7]} 6... a6 {[%clk 0:02:57.9]} 7. a4
{[%clk 0:02:43.2]} 7... a5 {[%clk 0:02:57.9]} 8. Qd2 {[%clk 0:02:42.1]} 8... Na6
{[%clk 0:02:58.2]} 9. Bd3 {[%clk 0:02:35.8]} 9... Nb4 {[%clk 0:02:58.3]} 10.
Nge2 {[%clk 0:02:35.2]} 10... O-O {[%clk 0:02:49.9]} 11. O-O {[%clk 0:02:34]}
11... Nxd3 {[%clk 0:02:30.7]} 12. Qxd3 {[%clk 0:02:34.9]} 12... Ne8 {[%clk
0:02:31.5]} 13. Rad1 {[%clk 0:02:31.8]} 13... Nc7 {[%clk 0:02:30.6]} 14. Qd2
{[%clk 0:02:27]} 14... d5 {[%clk 0:02:30.1]} 15. cxd5 {[%clk 0:02:20.7]} 15...
cxd5 {[%clk 0:02:29.9]} 16. Bh6 {[%clk 0:02:20.1]} 16... Bd7 {[%clk 0:02:02.5]}
17. Bxg7 {[%clk 0:02:15.4]} 17... Kxg7 {[%clk 0:02:03.4]} 18. exd5 {[%clk
0:02:09.4]} 18... b5 {[%clk 0:02:03.3]} 19. axb5 {[%clk 0:02:06.6]} 19... Nxb5
{[%clk 0:01:49.2]} 20. Rfe1 {[%clk 0:02:04.8]} 20... Re8 {[%clk 0:01:45.4]} 21.
Nxb5 {[%clk 0:02:00.6]} 21... Bxb5 {[%clk 0:01:45]} 22. Nc3 {[%clk 0:02:00.9]}
22... Bc4 {[%clk 0:01:45.2]} 23. Qf4 {[%clk 0:01:54.6]} 23... Rb8 {[%clk
0:01:38.1]} 24. Rd2 {[%clk 0:01:44.2]} 24... Kg8 {[%clk 0:01:33.5]} 25. Qe5
{[%clk 0:01:28.1]} 25... Rb6 {[%clk 0:01:33.3]} 26. h4 {[%clk 0:01:20.5]} 26...
h5 {[%clk 0:01:25]} 27. g4 {[%clk 0:01:16.4]} 27... Rf6 {[%clk 0:01:07.5]} 28.
Rg2 {[%clk 0:01:03.4]} 28... hxg4 {[%clk 0:00:28.8]} 29. fxg4 {[%clk 0:00:56.2]}
29... Rd6 {[%clk 0:00:26.2]} 30. Ne4 {[%clk 0:00:29]} 30... Rxd5 {[%clk
0:00:20.3]} 31. Nf6+ {[%clk 0:00:24.3]} 31... Kh8 {[%clk 0:00:20.4]} 32. Nxd5+
{[%clk 0:00:21.8]} 32... f6 {[%clk 0:00:20.7]} 33. Nxf6 {[%clk 0:00:21.3]} 1-0

[Event "*** SCC Grand Prix: Titled Tuesday Blitz"]
[Site "Chess.com"]
[Date "2020.06.02"]
[Round "8"]
[White "kasparicy"]
[Black "Panterov"]
[Result "1/2-1/2"]
[WhiteElo "2201"]
[BlackElo "2123"]
[TimeControl "180+1"]
[EndTime "11:36:10 PDT"]
[Termination "Game drawn by repetition"]

1. e4 {[%clk 0:03:00.9]} 1... d6 {[%clk 0:02:57.2]} 2. d4 {[%clk 0:03:00.2]}
2... g6 {[%clk 0:02:57.4]} 3. Nc3 {[%clk 0:03:01.1]} 3... Bg7 {[%clk 0:02:57.8]}
4. Be2 {[%clk 0:02:59.8]} 4... Nf6 {[%clk 0:02:56.3]} 5. h4 {[%clk 0:02:59.4]}
5... O-O {[%clk 0:02:56.8]} 6. h5 {[%clk 0:02:59]} 6... e5 {[%clk 0:02:52.9]} 7.
Nf3 {[%clk 0:02:57.8]} 7... exd4 {[%clk 0:02:51.1]} 8. Nxd4 {[%clk 0:02:58.7]}
8... Nc6 {[%clk 0:02:51.2]} 9. Be3 {[%clk 0:02:58]} 9... Re8 {[%clk 0:02:46.1]}
10. f3 {[%clk 0:02:56.7]} 10... Nxh5 {[%clk 0:02:44]} 11. Nxc6 {[%clk
0:02:45.5]} 11... bxc6 {[%clk 0:02:43.1]} 12. Bd4 {[%clk 0:02:45.6]} 12... Ng3
{[%clk 0:02:37.8]} 13. Rh2 {[%clk 0:02:41.3]} 13... c5 {[%clk 0:02:30.9]} 14.
Bxg7 {[%clk 0:02:39.6]} 14... Kxg7 {[%clk 0:02:31.8]} 15. Qd2 {[%clk 0:02:39.1]}
15... h5 {[%clk 0:02:29.3]} 16. O-O-O {[%clk 0:02:38.8]} 16... Be6 {[%clk
0:02:23.5]} 17. Qf4 {[%clk 0:02:35.2]} 17... Nxe2+ {[%clk 0:02:20.8]} 18. Nxe2
{[%clk 0:02:36.1]} 18... Qf6 {[%clk 0:02:20.7]} 19. Qe3 {[%clk 0:02:21.2]} 19...
Bxa2 {[%clk 0:02:19.8]} 20. g4 {[%clk 0:02:20.6]} 20... Bc4 {[%clk 0:02:09.1]}
21. Nf4 {[%clk 0:02:06]} 21... hxg4 {[%clk 0:02:02]} 22. Rg1 {[%clk 0:02:01.4]}
22... Rh8 {[%clk 0:02:01.2]} 23. Rhg2 {[%clk 0:01:56.7]} 23... Rab8 {[%clk
0:01:54.1]} 24. c3 {[%clk 0:01:49.9]} 24... Rh4 {[%clk 0:01:42.2]} 25. Rxg4
{[%clk 0:01:48.3]} 25... Rxg4 {[%clk 0:01:41.2]} 26. Rxg4 {[%clk 0:01:49.2]}
26... Rh8 {[%clk 0:01:40.9]} 27. Qg1 {[%clk 0:01:34]} 27... Rh6 {[%clk
0:01:37.7]} 28. Kc2 {[%clk 0:01:31.8]} 28... a5 {[%clk 0:01:37.4]} 29. Qg3
{[%clk 0:01:21]} 29... a4 {[%clk 0:01:33.9]} 30. Ng2 {[%clk 0:01:16.6]} 30...
Bb3+ {[%clk 0:01:31.6]} 31. Kd2 {[%clk 0:01:14.9]} 31... Rh1 {[%clk 0:01:25.6]}
32. Ne3 {[%clk 0:01:02.1]} 32... Kf8 {[%clk 0:01:14.5]} 33. Rf4 {[%clk
0:00:57.6]} 33... Qh8 {[%clk 0:01:10.3]} 34. Ng2 {[%clk 0:00:45.2]} 34... Qh2
{[%clk 0:00:54.1]} 35. Qg5 {[%clk 0:00:44.1]} 35... Rg1 {[%clk 0:00:36.3]} 36.
Qd8+ {[%clk 0:00:41.2]} 36... Kg7 {[%clk 0:00:35.9]} 37. Qf6+ {[%clk 0:00:40.7]}
37... Kg8 {[%clk 0:00:36.1]} 38. Qd8+ {[%clk 0:00:37.9]} 38... Kg7 {[%clk
0:00:32.2]} 39. Qf6+ {[%clk 0:00:37.6]} 39... Kg8 {[%clk 0:00:19.6]} 40. Qd8+
{[%clk 0:00:36.6]} 40... Kg7 {[%clk 0:00:20]} 1/2-1/2

[Event "*** SCC Grand Prix: Titled Tuesday Blitz"]
[Site "Chess.com"]
[Date "2020.06.02"]
[Round "8"]
[White "Marty435"]
[Black "ftorodent"]
[Result "0-1"]
[WhiteElo "2436"]
[BlackElo "2648"]
[TimeControl "180+1"]
[EndTime "11:36:12 PDT"]
[Termination "ftorodent won on time"]

1. d4 {[%clk 0:03:00.9]} 1... f5 {[%clk 0:02:59.3]} 2. Bf4 {[%clk 0:02:59.7]}
2... Nf6 {[%clk 0:02:58.2]} 3. e3 {[%clk 0:03:00.2]} 3... d6 {[%clk 0:02:57.8]}
4. Nc3 {[%clk 0:02:53.9]} 4... Nc6 {[%clk 0:02:50.9]} 5. Bc4 {[%clk 0:02:43.2]}
5... g6 {[%clk 0:02:30.8]} 6. h4 {[%clk 0:02:42.2]} 6... h6 {[%clk 0:02:12.8]}
7. Qf3 {[%clk 0:02:27.5]} 7... e6 {[%clk 0:02:09.7]} 8. Nge2 {[%clk 0:02:15.7]}
8... Qe7 {[%clk 0:02:08.4]} 9. Bh2 {[%clk 0:02:10.9]} 9... Bd7 {[%clk
0:01:57.5]} 10. O-O-O {[%clk 0:02:07.5]} 10... O-O-O {[%clk 0:01:57.2]} 11. Nf4
{[%clk 0:01:55.4]} 11... Rg8 {[%clk 0:01:55.4]} 12. Qe2 {[%clk 0:01:20.9]} 12...
g5 {[%clk 0:01:41]} 13. hxg5 {[%clk 0:01:21]} 13... hxg5 {[%clk 0:01:41.2]} 14.
Nd3 {[%clk 0:01:09.4]} 14... Bg7 {[%clk 0:01:37.8]} 15. d5 {[%clk 0:01:04.7]}
15... Na5 {[%clk 0:01:09.6]} 16. Nb4 {[%clk 0:00:36.6]} 16... Nxc4 {[%clk
0:00:43.8]} 17. Qxc4 {[%clk 0:00:37.5]} 17... Kb8 {[%clk 0:00:41.4]} 18. Rd3
{[%clk 0:00:30.8]} 18... Rc8 {[%clk 0:00:29.5]} 19. Nb5 {[%clk 0:00:24]} 19...
exd5 {[%clk 0:00:26.1]} 20. Nxd5 {[%clk 0:00:12.4]} 20... Nxd5 {[%clk
0:00:26.1]} 21. Rxd5 {[%clk 0:00:11.8]} 21... Be6 {[%clk 0:00:20]} 22. Qa4
{[%clk 0:00:02.9]} 22... a6 {[%clk 0:00:19.6]} 23. Rxd6 {[%clk 0:00:01.8]} 23...
axb5 {[%clk 0:00:14.2]} 24. Qa3 {[%clk 0:00:01.7]} 24... Bf8 {[%clk 0:00:10.1]}
0-1

[Event "*** SCC Grand Prix: Titled Tuesday Blitz"]
[Site "Chess.com"]
[Date "2020.06.02"]
[Round "8"]
[White "DonBroca"]
[Black "Yoshikrov"]
[Result "0-1"]
[WhiteElo "2172"]
[BlackElo "2052"]
[TimeControl "180+1"]
[EndTime "11:36:13 PDT"]
[Termination "Yoshikrov won by resignation"]

1. e4 {[%clk 0:03:00.9]} 1... c5 {[%clk 0:02:59.7]} 2. Nf3 {[%clk 0:02:23.1]}
2... d6 {[%clk 0:02:59.4]} 3. d4 {[%clk 0:02:20.8]} 3... cxd4 {[%clk 0:03:00.3]}
4. Nxd4 {[%clk 0:02:21]} 4... Nf6 {[%clk 0:03:01]} 5. Nc3 {[%clk 0:02:21.3]}
5... a6 {[%clk 0:03:01.2]} 6. Be3 {[%clk 0:02:19.1]} 6... e5 {[%clk 0:03:00.6]}
7. Nb3 {[%clk 0:02:18.1]} 7... Be6 {[%clk 0:03:00.7]} 8. f3 {[%clk 0:02:18]}
8... h5 {[%clk 0:03:01]} 9. Qd2 {[%clk 0:02:18.2]} 9... Nbd7 {[%clk 0:03:00.9]}
10. Be2 {[%clk 0:02:11.3]} 10... b5 {[%clk 0:02:59.9]} 11. Nd5 {[%clk
0:02:10.1]} 11... Bxd5 {[%clk 0:02:41.9]} 12. exd5 {[%clk 0:02:11]} 12... Nb6
{[%clk 0:02:41.4]} 13. Bxb6 {[%clk 0:01:57.6]} 13... Qxb6 {[%clk 0:02:42.3]} 14.
O-O-O {[%clk 0:01:51.5]} 14... Rc8 {[%clk 0:02:40.4]} 15. Kb1 {[%clk 0:01:51.2]}
15... Be7 {[%clk 0:02:36.1]} 16. Qa5 {[%clk 0:01:51.4]} 16... Qxa5 {[%clk
0:02:24.2]} 17. Nxa5 {[%clk 0:01:52.3]} 17... Rc5 {[%clk 0:02:22.5]} 18. Nb7
{[%clk 0:01:26.4]} 18... Rxd5 {[%clk 0:02:16.6]} 19. Rxd5 {[%clk 0:01:26.3]}
19... Nxd5 {[%clk 0:02:16.8]} 20. Rd1 {[%clk 0:01:26.2]} 20... Nf4 {[%clk
0:02:12.4]} 21. Bf1 {[%clk 0:01:25.9]} 21... O-O {[%clk 0:02:07.8]} 22. g3
{[%clk 0:01:26.2]} 22... Ne6 {[%clk 0:02:02.8]} 23. a4 {[%clk 0:01:22.4]} 23...
bxa4 {[%clk 0:02:01]} 24. Bxa6 {[%clk 0:01:21.3]} 24... Ra8 {[%clk 0:01:54.8]}
25. Bb5 {[%clk 0:01:14.3]} 25... a3 {[%clk 0:01:52.3]} 26. bxa3 {[%clk
0:01:12.2]} 26... Rxa3 {[%clk 0:01:50.6]} 27. Nxd6 {[%clk 0:01:12.1]} 27... Bxd6
{[%clk 0:01:42]} 28. Rxd6 {[%clk 0:01:12.3]} 28... Rxf3 {[%clk 0:01:41.6]} 29.
Bc4 {[%clk 0:01:05.5]} 29... Nd4 {[%clk 0:01:29.5]} 30. Rd8+ {[%clk 0:01:05.1]}
30... Kh7 {[%clk 0:01:28.3]} 31. Rd5 {[%clk 0:01:04.9]} 31... f6 {[%clk
0:01:25.6]} 32. Bd3+ {[%clk 0:00:59.9]} 32... g6 {[%clk 0:01:11.8]} 33. Rd7+
{[%clk 0:00:52.9]} 33... Kh6 {[%clk 0:01:11.8]} 34. Rd8 {[%clk 0:00:53.1]} 34...
Kg5 {[%clk 0:01:03.9]} 35. Rg8 {[%clk 0:00:50.1]} 35... f5 {[%clk 0:01:02.1]}
36. h4+ {[%clk 0:00:49.2]} 36... Kf6 {[%clk 0:01:02.2]} 37. Rf8+ {[%clk
0:00:45.6]} 37... Ke7 {[%clk 0:00:59.7]} 38. Rg8 {[%clk 0:00:45.5]} 38... Kf7
{[%clk 0:00:59.3]} 39. Rd8 {[%clk 0:00:43.7]} 39... Rxg3 {[%clk 0:00:54.6]} 40.
Rd7+ {[%clk 0:00:43.9]} 40... Ke6 {[%clk 0:00:53.7]} 41. Rg7 {[%clk 0:00:43.5]}
41... e4 {[%clk 0:00:51.6]} 42. Bc4+ {[%clk 0:00:42.5]} 42... Ke5 {[%clk
0:00:52]} 43. Re7+ {[%clk 0:00:40.1]} 43... Kf4 {[%clk 0:00:52.1]} 44. Rg7
{[%clk 0:00:33.4]} 44... Nf3 {[%clk 0:00:50.2]} 45. Bf7 {[%clk 0:00:30.8]} 45...
Nxh4 {[%clk 0:00:49]} 46. c4 {[%clk 0:00:30.9]} 46... e3 {[%clk 0:00:46.4]} 47.
Be8 {[%clk 0:00:29.3]} 47... e2 {[%clk 0:00:45.9]} 48. Re7 {[%clk 0:00:29.9]}
48... Re3 {[%clk 0:00:46.1]} 49. Rxe3 {[%clk 0:00:28.5]} 49... Kxe3 {[%clk
0:00:46.7]} 50. c5 {[%clk 0:00:29.3]} 50... e1=Q+ {[%clk 0:00:46.9]} 0-1

[Event "*** SCC Grand Prix: Titled Tuesday Blitz"]
[Site "Chess.com"]
[Date "2020.06.02"]
[Round "8"]
[White "Chessmatus"]
[Black "Supernotar"]
[Result "0-1"]
[WhiteElo "2537"]
[BlackElo "2710"]
[TimeControl "180+1"]
[EndTime "11:36:14 PDT"]
[Termination "Supernotar won by resignation"]

1. e4 {[%clk 0:02:59.2]} 1... c6 {[%clk 0:03:00.1]} 2. d4 {[%clk 0:02:58.4]}
2... d5 {[%clk 0:03:00.3]} 3. e5 {[%clk 0:02:58.8]} 3... Bf5 {[%clk 0:03:00]} 4.
Nf3 {[%clk 0:02:58.7]} 4... e6 {[%clk 0:03:00.1]} 5. Be2 {[%clk 0:02:59]} 5...
Nd7 {[%clk 0:02:59]} 6. O-O {[%clk 0:02:58.4]} 6... h6 {[%clk 0:02:59.4]} 7.
Nbd2 {[%clk 0:02:57]} 7... Ne7 {[%clk 0:02:57]} 8. Nb3 {[%clk 0:02:55.8]} 8...
Bh7 {[%clk 0:02:56.5]} 9. a4 {[%clk 0:02:51.1]} 9... Nf5 {[%clk 0:02:48.9]} 10.
a5 {[%clk 0:02:43.6]} 10... Be7 {[%clk 0:02:46.4]} 11. g4 {[%clk 0:02:33.4]}
11... Nh4 {[%clk 0:02:44.9]} 12. Nxh4 {[%clk 0:02:33.7]} 12... Bxh4 {[%clk
0:02:43.6]} 13. f4 {[%clk 0:02:33.4]} 13... f5 {[%clk 0:02:25.6]} 14. Be3 {[%clk
0:02:10.9]} 14... O-O {[%clk 0:02:20.7]} 15. Nd2 {[%clk 0:01:49.9]} 15... fxg4
{[%clk 0:02:13.7]} 16. Bxg4 {[%clk 0:01:49.5]} 16... Bf5 {[%clk 0:02:13.8]} 17.
h3 {[%clk 0:01:40.2]} 17... Qe8 {[%clk 0:02:02.2]} 18. Kh2 {[%clk 0:01:36.4]}
18... Qg6 {[%clk 0:01:57.8]} 19. Rg1 {[%clk 0:01:26.7]} 19... Qh7 {[%clk
0:01:42.1]} 20. Bxf5 {[%clk 0:01:14.2]} 20... Rxf5 {[%clk 0:01:38.8]} 21. Rg4
{[%clk 0:01:14.1]} 21... Be7 {[%clk 0:01:30.8]} 22. Qe2 {[%clk 0:01:09.7]} 22...
Raf8 {[%clk 0:01:29.5]} 23. Rag1 {[%clk 0:01:09]} 23... R8f7 {[%clk 0:01:29.3]}
24. Nf1 {[%clk 0:01:06.7]} 24... Rf8 {[%clk 0:01:06]} 25. Ng3 {[%clk 0:01:03.3]}
25... R5f7 {[%clk 0:01:04.2]} 26. Nh5 {[%clk 0:00:58.4]} 26... g5 {[%clk
0:00:56.3]} 27. fxg5 {[%clk 0:00:55]} 27... hxg5 {[%clk 0:00:52.5]} 28. Bxg5
{[%clk 0:00:33.1]} 28... Rf2+ {[%clk 0:00:42.4]} 29. Kh1 {[%clk 0:00:33.3]}
29... Rxe2 {[%clk 0:00:37.6]} 30. Bxe7+ {[%clk 0:00:29.9]} 30... Kh8 {[%clk
0:00:24.1]} 31. Bxf8 {[%clk 0:00:24.2]} 31... Nxf8 {[%clk 0:00:19.6]} 32. Rg5
{[%clk 0:00:17.3]} 32... Qe4+ {[%clk 0:00:18]} 0-1